fUST/lending_fUST_20250803
["ID","MTS","AMOUNT","RATE_DAILY","PERIOD"]
[376979176,1754185845693,-151.0,0.00028025,7]
[376979178,1754185845703,-151.0,0.00028025,7]
[376979180,1754185845712,-151.0,0.00028025,7]
[376979182,1754185845722,-151.0,0.00028025,7]
[376979184,1754185845731,-151.0,0.00028025,7]
[376979186,1754185845741,-272.394509,0.00028025,7]
[376979188,1754185845750,-163.786079,0.00028025,20]
[376979190,1754185845760,-460.0,0.00028026,10]
[376979192,1754185845769,-310.87146318,0.00028026,10]
[376979194,1754185845779,-460.0,0.00028026,10]
[376979196,1754185845790,-460.0,0.00028026,10]
[376979198,1754185845799,-460.0,0.00028026,10]
[376979200,1754185845808,-460.0,0.00028026,10]
[376979202,1754185845818,-460.0,0.00028026,10]
[376979204,1754185845828,-460.0,0.00028026,10]
[376979206,1754185845838,-460.0,0.00028026,10]
[376979208,1754185845847,-460.0,0.00028026,10]
[376979210,1754185845856,-460.0,0.00028026,10]
[376979212,1754185845867,-460.0,0.00028026,10]
[376979214,1754185845876,-460.0,0.00028026,10]
[376979216,1754185845886,-460.0,0.00028026,10]
[376979218,1754185845895,-460.0,0.00028026,10]
[376979220,1754185845904,-460.0,0.00028026,10]
[376979221,1754185845915,-307.473,0.00028026,10]
[376979223,1754185845924,-160.21608659,0.00028026,10]
[376979225,1754185845934,-151.0,0.00028027,7]
[376979227,1754185845944,-151.996731,0.00028027,7]
[376979229,1754185845954,-151.0,0.00028027,7]
[376979231,1754185845965,-3985.64650422,0.00028027,30]
[376979234,1754185845975,-151.0,0.00028027,7]
[376979237,1754185845985,-151.0,0.00028027,7]
[376979240,1754185845995,-151.0,0.00028027,7]
[376979242,1754185846004,-152.780203,0.00028027,7]
[376979245,1754185846014,-151.470643,0.00028027,7]
[376979247,1754185846024,-151.0,0.00028027,7]
[376979249,1754185846034,-151.0,0.00028027,7]
[376979251,1754185846043,-151.983936,0.00028027,7]
[376979253,1754185846053,-152.870138,0.00028027,7]
[376979256,1754185846064,-178.08,0.00028027,30]
[376979258,1754185846074,-507.86611767,0.00028027,2]
[376979259,1754185846084,-160.0,0.00028027,7]
[376979261,1754185846093,-14708.68520627,0.00028027,20]
[376979264,1754185846107,-1083.345752,0.00028027,20]
[376979304,1754185846624,-1114.85641408,0.00028027,20]
[376979306,1754185846637,-1449.95054208,0.00028027,20]
[376979316,1754185846731,-302.0,0.00028027,20]
[376979323,1754185846787,-13600.79293419,0.00028027,20]
[376979664,1754185851154,1008.0,0.00027397,120]
[376980004,1754186743131,-1104.80099066,0.0002371,2]
[376980005,1754186743153,-425.86692668,0.00024191,2]
[376980006,1754186814094,-191.66832923,0.00023949,2]
[376980007,1754186817610,164.845931,0.00013699,2]
[376980008,1754186818020,164.845931,0.00020548,2]
[376980010,1754186842115,-1507.81503946,0.00023949,2]
[376980011,1754186842140,-74.13307332,0.00024191,2]
[376980012,1754186842164,-97.9191093,0.00025,2]
[376980013,1754186882888,150.0,0.00022091,2]
[376980036,1754187031768,-500.0,0.00024191,2]
[376980037,1754187031778,-1863.83666424,0.0002475,2]
[376980042,1754187031821,-883.53341907,0.0002475,2]
[376980044,1754187031833,-1945.66710203,0.0002475,2]
[376980046,1754187031843,-300.0,0.00024999,2]
[376980048,1754187031852,-1200.0,0.00024999,2]
[376980050,1754187031862,-3924.60435587,0.00025,2]
[376980200,1754187037833,-500.0,0.00025,2]
[376980201,1754187037886,-525.62621275,0.00025,2]
[376980656,1754187046004,-1287.30466022,0.00025,2]
[376980658,1754187046015,-160.03592004,0.00025,3]
[376980660,1754187046025,-150.0,0.00025108,2]
[376980662,1754187046034,-191.9295932,0.00025966,2]
[376980664,1754187046044,-160.0,0.00026008,2]
[376980666,1754187046053,-12649.34751639,0.00026008,2]
[376980668,1754187046064,-460.95174316,0.00026008,2]
[376980670,1754187046074,-160.0,0.00026008,2]
[376980672,1754187046083,-160.0,0.00026008,2]
[376980674,1754187046093,-160.0,0.00026008,2]
[376980676,1754187046103,-231.62108626,0.00026008,2]
[376980678,1754187046112,-216.32054205,0.00026008,2]
[376980679,1754187046125,-160.0,0.00026008,2]
[376980681,1754187046134,-160.0,0.00026008,2]
[376980684,1754187046144,-215.12253551,0.00026008,2]
[376980686,1754187046154,-160.0,0.00026008,2]
[376980688,1754187046164,-527.12062288,0.00026008,2]
[376980690,1754187046173,-841.87402298,0.00026008,2]
[376980692,1754187046183,-200.0,0.00026249,15]
[376980694,1754187046193,-300.0,0.00026249,15]
[376980696,1754187046202,-500.0,0.00026383,2]
[376980698,1754187046213,-1000.0,0.00026522,2]
[376980700,1754187046226,-160.35,0.000268,2]
[376980702,1754187046235,-158.0,0.00027,5]
[376980704,1754187046244,-159.0,0.00027,5]
[376980706,1754187046254,-926.36,0.00027,2]
[376980708,1754187046269,-160.0,0.00027,2]
[376980710,1754187046279,-420.0,0.00027082,2]
[376980712,1754187046290,-407.0,0.00027134,2]
[376980714,1754187046301,-182.40388307,0.00027186,2]
[376980716,1754187046310,-150.101,0.00027318,2]
[376980718,1754187046320,-150.0,0.00027318,2]
[376980720,1754187046329,-150.0,0.00027318,2]
[376980722,1754187046338,-150.164,0.00027318,2]
[376980723,1754187046348,-231.37249775,0.00027397,2]
[376980725,1754187046357,-164.845931,0.00027397,2]
[376980728,1754187046368,-500.0,0.00027397,5]
[376980729,1754187046379,-260.0,0.00027548,2]
[376980731,1754187046391,-500.0,0.00027943,2]
[376980733,1754187046401,-500.0,0.00027943,2]
[376980735,1754187046412,-527.92295842,0.00027943,2]
[376980737,1754187046422,-500.0,0.00027943,2]
[376980739,1754187046432,-500.0,0.00027943,2]
[376980741,1754187046442,-500.0,0.00027943,2]
[376980743,1754187046452,-500.0,0.00027943,2]
[376980745,1754187046462,-500.0,0.00027943,2]
[376980747,1754187046472,-500.0,0.00027943,2]
[376980749,1754187046483,-500.0,0.00027943,2]
[376980751,1754187046492,-500.0,0.00027943,2]
[376980753,1754187046502,-500.0,0.00027943,2]
[376980755,1754187046515,-500.0,0.00027943,2]
[376980758,1754187046525,-489.75979543,0.00027943,2]
[376980759,1754187046535,-356.30212084,0.00027943,2]
[376980762,1754187046546,-403.15801159,0.00027943,2]
[376980764,1754187046556,-500.0,0.00027943,2]
[376980765,1754187046566,-369.51408449,0.00027943,2]
[376980767,1754187046576,-500.0,0.00027943,2]
[376980769,1754187046585,-191.92312684,0.00027943,2]
[376980771,1754187046594,-500.0,0.00027943,2]
[376980773,1754187046603,-500.0,0.00027943,2]
[376980775,1754187046613,-340.61312323,0.00027943,2]
[376980777,1754187046623,-500.0,0.00027943,2]
[376980779,1754187046632,-500.0,0.00027943,2]
[376980781,1754187046642,-500.0,0.00027943,2]
[376980783,1754187046651,-512.2781985,0.00027945,10]
[376980785,1754187046661,-460.0,0.00027945,10]
[376980787,1754187046670,-464.19748507,0.00027945,10]
[376980789,1754187046680,-312.16666667,0.00027945,10]
[376980791,1754187046690,-461.7843817,0.00027945,10]
[376980793,1754187046699,-471.93871971,0.00027945,10]
[376980795,1754187046709,-460.0,0.00027945,10]
[376980797,1754187046718,-460.0,0.00027945,10]
[376980799,1754187046728,-460.0,0.00027945,10]
[376980801,1754187046738,-460.0,0.00027945,10]
[376980803,1754187046748,-505.23176262,0.00027945,10]
[376980804,1754187046757,-464.49581404,0.00027945,10]
[376980807,1754187046770,-465.38964111,0.00027945,10]
[376980808,1754187046780,-466.8241882,0.00027945,10]
[376980810,1754187046789,-461.01139145,0.00027945,10]
[376980812,1754187046799,-460.0,0.00027945,10]
[376980814,1754187046808,-460.0,0.00027945,10]
[376980816,1754187046817,-473.89535721,0.00027945,10]
[376980818,1754187046826,-460.0,0.00027945,10]
[376980820,1754187046835,-460.0,0.00027945,10]
[376980822,1754187046845,-519.9798449,0.00027945,10]
[376980824,1754187046855,-200.0,0.00027945,10]
[376980826,1754187046865,-460.0,0.00027945,10]
[376980828,1754187046875,-466.84930996,0.00027945,10]
[376980830,1754187046885,-464.65819155,0.00027945,10]
[376980832,1754187046894,-460.0,0.00027945,10]
[376980834,1754187046904,-466.55689197,0.00027945,10]
[376980836,1754187046914,-468.71297319,0.00027945,10]
[376980838,1754187046923,-460.0,0.00027945,10]
[376980840,1754187046933,-471.88567955,0.00027945,10]
[376980842,1754187046942,-463.07503912,0.00027945,10]
[376980844,1754187046952,-464.44952271,0.00027945,10]
[376980846,1754187046962,-468.03671456,0.00027945,10]
[376980848,1754187046971,-460.0,0.00027945,10]
[376980850,1754187046981,-460.0,0.00027945,10]
[376980852,1754187046991,-469.45533293,0.00027945,10]
[376980854,1754187047000,-593.20811559,0.00027945,10]
[376980855,1754187047011,-299.68939905,0.00027945,10]
[376980873,1754187047173,-460.0,0.00027945,10]
[376980875,1754187047183,-271.15078566,0.00027945,10]
[376980877,1754187047193,-466.74707591,0.00027945,10]
[376980879,1754187047203,-460.0,0.00027945,10]
[376980881,1754187047215,-472.2050081,0.00027945,10]
[376980883,1754187047232,-460.0,0.00027945,10]
[376980885,1754187047242,-460.0,0.00027945,10]
[376980887,1754187047251,-568.05792501,0.00027945,10]
[376980889,1754187047262,-473.29119184,0.00027945,10]
[376980891,1754187047273,-469.80946771,0.00027945,10]
[376980893,1754187047283,-460.0,0.00027945,10]
[376980895,1754187047294,-460.0,0.00027945,10]
[376980897,1754187047304,-460.0,0.00027945,10]
[376980899,1754187047313,-460.0,0.00027945,10]
[376980901,1754187047323,-460.0,0.00027945,10]
[376980903,1754187047333,-460.0,0.00027945,10]
[376980905,1754187047343,-460.0,0.00027945,10]
[376980907,1754187047352,-472.93908229,0.00027945,10]
[376980909,1754187047361,-467.70737913,0.00027945,10]
[376980911,1754187047372,-460.0,0.00027945,10]
[376980913,1754187047382,-460.0,0.00027945,10]
[376980915,1754187047391,-460.0,0.00027945,10]
[376980917,1754187047400,-460.0,0.00027945,10]
[376980919,1754187047410,-469.5737248,0.00027945,10]
[376980921,1754187047420,-463.12818602,0.00027945,10]
[376980923,1754187047430,-463.2477394,0.00027945,10]
[376980925,1754187047440,-466.16567635,0.00027945,10]
[376980927,1754187047450,-460.0,0.00027945,10]
[376980929,1754187047459,-460.0,0.00027945,10]
[376980931,1754187047469,-460.0,0.00027945,10]
[376980933,1754187047480,-460.0,0.00027945,10]
[376980935,1754187047490,-462.15248068,0.00027945,10]
[376980937,1754187047500,-466.24332828,0.00027945,10]
[376980939,1754187047511,-501.47591389,0.00027973,5]
[376980941,1754187047521,-501.89668903,0.00027973,5]
[376980943,1754187047530,-501.42889771,0.00027973,5]
[376980945,1754187047540,-501.44828227,0.00027973,5]
[376980947,1754187047549,-500.0,0.00027973,5]
[376980949,1754187047558,-243.07311837,0.00027973,5]
[376980951,1754187047568,-500.0,0.00027973,5]
[376980953,1754187047578,-503.17180209,0.00027973,5]
[376980955,1754187047588,-501.29351117,0.00027973,5]
[376980957,1754187047597,-505.44306724,0.00027973,5]
[376980959,1754187047606,-258.39466523,0.00027973,5]
[376980961,1754187047615,-357.84513424,0.00027973,5]
[376980963,1754187047625,-501.53817509,0.00027973,5]
[376980965,1754187047634,-253.67256146,0.00027973,5]
[376980967,1754187047645,-167.21687819,0.00027973,5]
[376980969,1754187047655,-500.0,0.00027973,5]
[376980971,1754187047664,-500.0,0.00027973,5]
[376980973,1754187047674,-500.83076842,0.00027973,5]
[376980975,1754187047684,-500.0,0.00027973,5]
[376980977,1754187047692,-500.39454513,0.00027973,3]
[376980979,1754187047702,-505.60778526,0.00027973,5]
[376980981,1754187047712,-502.69691644,0.00027973,5]
[376980983,1754187047722,-501.36605742,0.00027973,5]
[376980985,1754187047732,-200.0,0.00027973,5]
[376980987,1754187047741,-232.15942319,0.00027973,5]
[376980989,1754187047751,-504.97707892,0.00027973,5]
[376980991,1754187047761,-500.64868932,0.00027973,5]
[376980993,1754187047771,-500.0,0.00027989,10]
[376980995,1754187047780,-500.0,0.00027989,10]
[376980997,1754187047789,-500.0,0.00027989,10]
[376980999,1754187047798,-419.9350706,0.00027989,10]
[376981001,1754187047809,-460.0,0.00027989,10]
[376981002,1754187047818,-460.0,0.00027989,10]
[376981005,1754187047828,-460.0,0.00027989,10]
[376981007,1754187047838,-460.0,0.00027989,10]
[376981009,1754187047848,-607.9,0.00027989,10]
[376981011,1754187047858,-460.0,0.00027989,10]
[376981012,1754187047867,-460.0,0.00027989,10]
[376981014,1754187047876,-460.0,0.00027989,10]
[376981016,1754187047886,-460.0,0.00027989,10]
[376981018,1754187047896,-204.31775573,0.00027989,10]
[376981021,1754187047906,-483.52299837,0.00027989,10]
[376981023,1754187047917,-460.0,0.00027989,10]
[376981025,1754187047928,-460.0,0.00027989,10]
[376981026,1754187047937,-460.0,0.00027989,10]
[376981029,1754187047948,-460.0,0.00027989,10]
[376981030,1754187047959,-460.0,0.00027989,10]
[376981032,1754187047969,-500.92,0.00027989,10]
[376981034,1754187047979,-460.0,0.00027989,10]
[376981036,1754187047988,-526.88,0.00027989,10]
[376981038,1754187047997,-481.38627736,0.00027989,10]
[376981040,1754187048007,-460.0,0.00027989,10]
[376981042,1754187048019,-460.0,0.00027989,10]
[376981044,1754187048029,-460.0,0.00027989,10]
[376981046,1754187048038,-558.11738427,0.00027989,10]
[376981048,1754187048047,-460.0,0.00027989,10]
[376981050,1754187048057,-460.0,0.00027989,10]
[376981052,1754187048067,-460.0,0.00027989,10]
[376981054,1754187048077,-460.0,0.00027989,10]
[376981056,1754187048087,-470.02,0.00027989,10]
[376981058,1754187048097,-3451.02,0.00027989,2]
[376981060,1754187048106,-478.43543206,0.00027989,10]
[376981062,1754187048116,-460.0,0.00027989,10]
[376981064,1754187048125,-460.0,0.00027989,10]
[376981066,1754187048135,-460.0,0.00027989,10]
[376981067,1754187048145,-460.0,0.00027989,10]
[376981068,1754187048154,-460.0,0.00027989,10]
[376981069,1754187048163,-460.0,0.00027989,10]
[376981070,1754187048173,-460.0,0.00027989,10]
[376981071,1754187048184,-460.0,0.00027989,10]
[376981072,1754187048194,-460.0,0.00027989,10]
[376981073,1754187048204,-480.38829286,0.00027989,10]
[376981074,1754187048215,-460.0,0.00027989,10]
[376981075,1754187048231,-460.0,0.00027989,10]
[376981076,1754187048241,-253.93305884,0.0002799,2]
[376981077,1754187048250,-11727.40992583,0.0002799,2]
[376981078,1754187048261,-108620.915871,0.0002799,2]
[376981079,1754187048271,-1319.03066655,0.0002799,2]
[376981080,1754187048280,-460.0,0.00027999,10]
[376981081,1754187048291,-460.0,0.00027999,10]
[376981082,1754187048301,-460.0,0.00027999,10]
[376981083,1754187048310,-460.0,0.00027999,10]
[376981084,1754187048319,-486.12734686,0.00027999,10]
[376981085,1754187048328,-460.0,0.00027999,10]
[376981086,1754187048337,-460.0,0.00027999,10]
[376981087,1754187048345,-460.0,0.00027999,10]
[376981088,1754187048355,-460.0,0.00027999,10]
[376981089,1754187048364,-460.0,0.00027999,10]
[376981090,1754187048373,-460.0,0.00027999,10]
[376981091,1754187048383,-460.0,0.00027999,10]
[376981093,1754187048392,-460.0,0.00027999,10]
[376981095,1754187048402,-460.0,0.00027999,10]
[376981097,1754187048412,-460.0,0.00027999,10]
[376981099,1754187048422,-460.0,0.00027999,10]
[376981101,1754187048432,-469.54148837,0.00027999,10]
[376981103,1754187048441,-460.0,0.00027999,10]
[376981105,1754187048450,-460.0,0.00027999,10]
[376981107,1754187048460,-202.76,0.00027999,10]
[376981108,1754187048470,-460.0,0.00027999,10]
[376981110,1754187048479,-460.0,0.00027999,10]
[376981112,1754187048489,-460.0,0.00027999,10]
[376981114,1754187048499,-460.0,0.00027999,10]
[376981116,1754187048509,-460.0,0.00027999,10]
[376981118,1754187048519,-460.0,0.00027999,10]
[376981120,1754187048529,-579.26,0.00027999,10]
[376981122,1754187048539,-228762.41768228,0.00028,30]
[376981124,1754187048549,-158.0,0.00028,7]
[376981126,1754187048558,-158.0,0.00028,7]
[376981128,1754187048567,-160.0,0.00028001,2]
[376981130,1754187048577,-460.0,0.00028016,10]
[376981132,1754187048587,-21724.1831743,0.00028017,2]
[376981134,1754187048596,-263.80613331,0.00028017,2]
[376981136,1754187048606,-460.0,0.00028019,10]
[376981138,1754187048615,-460.0,0.0002802,10]
[376981140,1754187048624,-151.0,0.00028022,7]
[376981142,1754187048634,-151.0,0.00028022,7]
[376981144,1754187048644,-151.0,0.00028022,7]
[376981146,1754187048654,-500.0,0.00028022,2]
[376981147,1754187048667,-251.02942779,0.00028022,7]
[376981149,1754187048677,-248.14790482,0.00028022,7]
[376981151,1754187048687,-460.0,0.00028024,10]
[376981153,1754187048696,-460.0,0.00028024,10]
[376981155,1754187048707,-281.7787,0.00028024,10]
[376981157,1754187048717,-460.0,0.00028024,10]
[376981159,1754187048727,-460.0,0.00028024,10]
[376981161,1754187048737,-460.0,0.00028024,10]
[376981163,1754187048746,-460.0,0.00028024,10]
[376981165,1754187048757,-150.0,0.00028026,2]
[376981167,1754187048767,-465.47,0.00028026,10]
[376981169,1754187048777,-460.0,0.00028026,10]
[376981171,1754187048787,-460.0,0.00028026,10]
[376981173,1754187048796,-460.0,0.00028026,10]
[376981175,1754187048805,-460.0,0.00028026,10]
[376981177,1754187048815,-460.0,0.00028026,10]
[376981179,1754187048824,-460.0,0.00028026,10]
[376981181,1754187048834,-460.0,0.00028026,10]
[376981182,1754187048843,-460.0,0.00028026,10]
[376981184,1754187048853,-460.0,0.00028026,10]
[376981186,1754187048862,-460.0,0.00028026,10]
[376981188,1754187048872,-460.0,0.00028026,10]
[376981190,1754187048881,-460.0,0.00028026,10]
[376981192,1754187048891,-460.0,0.00028026,10]
[376981194,1754187048900,-460.0,0.00028026,10]
[376981196,1754187048910,-315.89,0.00028026,10]
[376981198,1754187048919,-168.02218771,0.00028027,2]
[376981200,1754187048930,-151.0,0.00028027,7]
[376981202,1754187048940,-462.75463917,0.00028027,10]
[376981204,1754187048950,-464.08136105,0.00028027,10]
[376981206,1754187048960,-151.0,0.00028027,7]
[376981208,1754187048969,-152.73083,0.00028027,7]
[376981210,1754187048979,-463.43532827,0.00028027,10]
[376981212,1754187048988,-463.59442934,0.00028027,10]
[376981214,1754187048999,-460.0,0.00028027,10]
[376981216,1754187049009,-460.0,0.00028027,10]
[376981218,1754187049019,-490.3251184,0.00028027,10]
[376981220,1754187049028,-488.1747774,0.00028027,10]
[376981222,1754187049039,-461.46002977,0.00028027,10]
[376981224,1754187049048,-461.60016528,0.00028027,10]
[376981226,1754187049058,-470.41566329,0.00028027,10]
[376981228,1754187049067,-485.42000837,0.00028027,10]
[376981230,1754187049077,-578.5017824,0.00028027,10]
[376981232,1754187049087,-526.98823603,0.00028027,10]
[376981234,1754187049096,-476.40558219,0.00028027,10]
[376981236,1754187049104,-164.47494404,0.00028027,10]
[376981238,1754187049113,-462.24998572,0.00028027,10]
[376981239,1754187049123,-460.0,0.00028027,10]
[376981241,1754187049132,-199.23620127,0.00028027,10]
[376981243,1754187049142,-472.45058305,0.00028027,10]
[376981245,1754187049151,-463.33022028,0.00028027,10]
[376981247,1754187049161,-469.49157396,0.00028027,10]
[376981249,1754187049171,-481.37139167,0.00028027,10]
[376981251,1754187049181,-460.0,0.00028027,10]
[376981253,1754187049191,-460.0,0.00028027,10]
[376981255,1754187049200,-464.08800004,0.00028027,10]
[376981257,1754187049210,-460.0,0.00028027,10]
[376981259,1754187049222,-473.42755708,0.00028027,10]
[376981261,1754187049232,-463.40151553,0.00028027,10]
[376981263,1754187049242,-460.67473736,0.00028027,10]
[376981265,1754187049251,-460.0,0.00028027,10]
[376981267,1754187049261,-465.1670781,0.00028027,10]
[376981269,1754187049271,-472.98088998,0.00028027,10]
[376981271,1754187049280,-256.87748417,0.00028027,10]
[376981273,1754187049290,-460.0,0.00028027,10]
[376981275,1754187049301,-474.89310729,0.00028027,10]
[376981277,1754187049311,-460.0,0.00028027,10]
[376981279,1754187049321,-460.0,0.00028027,10]
[376981281,1754187049330,-469.73359719,0.00028027,10]
[376981283,1754187049340,-573.55586289,0.00028027,10]
[376981285,1754187049349,-460.0,0.00028027,10]
[376981287,1754187049358,-179.16,0.00028027,10]
[376981289,1754187049368,-460.0,0.00028027,10]
[376981291,1754187049377,-460.0,0.00028027,10]
[376981293,1754187049386,-460.0,0.00028027,10]
[376981295,1754187049395,-472.55232436,0.00028027,10]
[376981297,1754187049404,-460.0,0.00028027,10]
[376981299,1754187049413,-270.88914334,0.00028027,10]
[376981301,1754187049422,-463.94670311,0.00028027,10]
[376981303,1754187049431,-460.79259812,0.00028027,10]
[376981304,1754187049441,-460.0,0.00028027,10]
[376981306,1754187049450,-460.0,0.00028027,10]
[376981308,1754187049460,-460.0,0.00028027,10]
[376981310,1754187049469,-460.0,0.00028027,10]
[376981312,1754187049478,-460.0,0.00028027,10]
[376981314,1754187049487,-478.02194132,0.00028027,10]
[376981316,1754187049497,-460.0,0.00028027,10]
[376981318,1754187049506,-464.95471167,0.00028027,10]
[376981320,1754187049516,-460.0,0.00028027,10]
[376981322,1754187049525,-464.38820487,0.00028027,10]
[376981324,1754187049534,-461.19898935,0.00028027,10]
[376981326,1754187049545,-464.19253734,0.00028027,10]
[376981328,1754187049555,-460.0,0.00028027,10]
[376981330,1754187049564,-478.8076143,0.00028027,10]
[376981332,1754187049573,-1757.0,0.00028027,7]
[376981334,1754187049584,-1787.68371129,0.00028027,7]
[376981336,1754187049593,-257.94000214,0.00028027,10]
[376981338,1754187049603,-460.0,0.00028027,10]
[376981340,1754187049612,-460.0,0.00028027,10]
[376981342,1754187049622,-460.0,0.00028027,10]
[376981344,1754187049631,-460.0,0.00028027,10]
[376981346,1754187049640,-460.0,0.00028027,10]
[376981348,1754187049650,-460.0,0.00028027,10]
[376981350,1754187049659,-460.0,0.00028027,10]
[376981352,1754187049668,-403.21150818,0.00028027,10]
[376981353,1754187049677,-460.0,0.00028027,10]
[376981355,1754187049686,-460.0,0.00028027,10]
[376981357,1754187049696,-460.0,0.00028027,10]
[376981359,1754187049705,-460.0,0.00028027,10]
[376981361,1754187049715,-464.37466005,0.00028027,10]
[376981363,1754187049724,-460.0,0.00028027,10]
[376981365,1754187049734,-460.0,0.00028027,10]
[376981367,1754187049744,-460.0,0.00028027,10]
[376981369,1754187049753,-460.0,0.00028027,10]
[376981371,1754187049763,-460.0,0.00028027,10]
[376981373,1754187049772,-460.0,0.00028027,10]
[376981375,1754187049782,-372.90764004,0.00028027,10]
[376981377,1754187049791,-336903.71516199,0.00028027,20]
[376981867,1754187718364,161.763851,0.00013699,2]
[376981868,1754187718762,161.763851,0.00020951,2]
[376981870,1754187883091,151.0,0.00020951,2]
[376981871,1754187932117,-1598.94882736,0.00023966,2]
[376981872,1754188002088,-181.70511935,0.00023511,2]
[376981873,1754188040075,-207.79400021,0.00024091,2]
[376981874,1754188040097,-162.025,0.0002419,6]
[376981875,1754188040118,-178.89066111,0.0002419,6]
[376981876,1754188040140,-300.0,0.0002419,2]
[376981877,1754188040160,-683.08785093,0.00024191,2]
[376981878,1754188095128,150.0,0.00022091,2]
[376981879,1754188116071,593.87404271,0.00028059,30]
[376981880,1754188118795,603.51404646,0.00023,2]
[376981882,1754188124342,173.20027609,0.00028059,120]
[376981964,1754188232045,-300.0,0.0002419,2]
[376981966,1754188232055,-31732.91214907,0.00024191,2]
[376981968,1754188232064,-500.0,0.00024223,2]
[376981970,1754188232073,-1461.93837861,0.0002465,2]
[376981972,1754188232088,-479.262,0.00025,2]
[376981974,1754188232099,-460.0,0.00025,2]
[376981976,1754188232114,-460.0,0.00025,2]
[376981978,1754188232123,-152.23348906,0.00025,5]
[376981980,1754188232133,-476.305,0.00025,2]
[376981982,1754188232142,-22026.00949576,0.00025143,2]
[376981984,1754188232154,-8249.41540442,0.00025143,2]
[376981986,1754188232163,-14743.90732693,0.00025143,2]
[376981988,1754188232172,-260.0681248,0.00025287,2]
[376981990,1754188232182,-465.76923632,0.00025287,2]
[376981992,1754188232192,-196.52864313,0.00025288,7]
[376981994,1754188232201,-150.0,0.00025307,2]
[376981996,1754188232211,-200.0,0.000254,15]
[376981998,1754188232221,-300.0,0.000254,15]
[376982000,1754188232232,-505.87471454,0.00025731,2]
[376982002,1754188232242,-820.30463329,0.00025898,2]
[376982004,1754188232251,-161.7341063,0.00025934,2]
[376982006,1754188232262,-13198.54125317,0.00026,30]
[376982008,1754188232271,-160.0,0.00026047,2]
[376982010,1754188232281,-160.0,0.00026047,2]
[376982011,1754188232290,-527.12062288,0.00026047,2]
[376982012,1754188232300,-841.87402298,0.00026047,2]
[376982013,1754188232309,-160.0,0.00026047,2]
[376982014,1754188232318,-160.0,0.00026047,2]
[376982015,1754188232327,-160.0,0.00026047,2]
[376982016,1754188232336,-160.0,0.00026047,2]
[376982017,1754188232346,-460.95174316,0.00026047,2]
[376982018,1754188232355,-231.62108626,0.00026047,2]
[376982019,1754188232364,-160.0,0.00026047,2]
[376982020,1754188232373,-215.12253551,0.00026047,2]
[376982021,1754188232382,-160.0,0.00026047,2]
[376982022,1754188232391,-12649.34751639,0.00026047,2]
[376982023,1754188232400,-216.32054205,0.00026061,2]
[376982024,1754188232409,-256.18,0.00026067,2]
[376982025,1754188232419,-3307.23,0.00026217,2]
[376982027,1754188232428,-40638.5700697,0.00026218,2]
[376982029,1754188232438,-204.90664413,0.00026218,2]
[376982031,1754188232447,-420.0,0.00026228,2]
[376982033,1754188232456,-834.077205,0.00026256,2]
[376982035,1754188232465,-500.72843976,0.00026273,2]
[376982037,1754188232475,-500.0,0.00026273,2]
[376982039,1754188232484,-500.0,0.00026273,2]
[376982041,1754188232493,-889.09046019,0.00026307,2]
[376982044,1754188232514,-1433.07122476,0.00026307,2]
[376982046,1754188232523,-217.61788727,0.00026329,2]